bitfinex/quotes_BTCUSD_20240611
["timestamp","ask_amount","ask_price","bid_price","bid_amount"]
[1718075520344,1.25588209,68345.0,68344.0,0.81255538]
[1718075520918,1.25588209,68345.0,68344.0,0.700418]
[1718075521939,1.25588209,68345.0,68344.0,0.702418]
[1718075522154,1.25588209,68345.0,68344.0,0.705418]
[1718075523232,0.005,68347.0,68346.0,0.146314]
[1718075523442,0.005,68347.0,68346.0,0.246314]
[1718075524610,0.005,68350.0,68346.0,0.1]
[1718075524848,0.14431993,68349.0,68345.0,0.1]
[1718075525420,0.14431993,68349.0,68346.0,0.003]
[1718075525628,0.14431993,68349.0,68345.0,0.1]
[1718075525833,0.14431993,68349.0,68346.0,0.11667123]
[1718075526037,0.14431993,68349.0,68347.0,0.1]
[1718075526238,0.14431993,68349.0,68348.0,0.14631]
[1718075526481,0.14431993,68349.0,68348.0,0.24631]
[1718075527226,1.26445209,68351.0,68350.0,0.146305]
[1718075527441,1.26445209,68351.0,68350.0,0.246305]
[1718075527658,2.11757202,68351.0,68350.0,0.246305]
[1718075528498,2.16095578,68351.0,68350.0,0.246305]
[1718075529155,0.90507369,68351.0,68350.0,0.246305]
[1718075529937,0.90507369,68351.0,68350.0,0.103]
[1718075530253,0.92807369,68351.0,68350.0,0.003]
[1718075530460,0.92807369,68351.0,68350.0,0.005]
[1718075530864,0.92807369,68351.0,68350.0,0.003]
[1718075531975,0.005,68349.0,68348.0,0.1]
[1718075532086,0.14931993,68349.0,68348.0,0.1]
[1718075533568,0.15031993,68349.0,68348.0,0.1]
[1718075533998,0.15131993,68349.0,68348.0,0.1]
[1718075537117,0.19470369,68349.0,68348.0,0.1]
[1718075537629,0.19452758,68349.0,68348.0,0.1]
[1718075540084,0.19452758,68349.0,68342.0,0.146322]
[1718075540085,0.54820765,68343.0,68342.0,0.146322]
[1718075540321,0.69252758,68343.0,68342.0,0.246322]
[1718075542563,0.69252758,68343.0,68342.0,0.248322]
[1718075543194,0.69252758,68343.0,68342.0,0.251322]
[1718075545557,0.71552758,68343.0,68342.0,0.103]
[1718075545735,0.71552758,68343.0,68342.0,0.003]
[1718075545978,0.71652758,68343.0,68342.0,0.003]
[1718075546156,0.71652758,68343.0,68338.0,0.1]
[1718075546157,0.04820765,68339.0,68338.0,0.1]
[1718075546395,0.19252758,68339.0,68338.0,0.1]
[1718075546617,0.04820765,68338.0,68337.0,0.000946]
[1718075546836,0.19377117,68338.0,68337.0,0.000946]
[1718075547297,0.64427117,68338.0,68337.0,0.000946]
[1718075548792,0.66727117,68338.0,68337.0,0.000946]
[1718075549500,0.67127117,68338.0,68337.0,0.000946]
[1718075549720,0.67527117,68338.0,68337.0,0.000946]
[1718075550153,0.68027117,68338.0,68337.0,0.000946]
[1718075550364,0.67902758,68338.0,68337.0,0.000946]
[1718075550789,0.15731993,68338.0,68337.0,0.000946]
[1718075550999,0.15331993,68338.0,68337.0,0.000946]
[1718075551221,0.15331993,68338.0,68337.0,0.247279]
[1718075551671,0.009,68338.0,68337.0,0.41907135]
[1718075552100,0.009,68338.0,68337.0,0.53365195]
[1718075552273,0.014,68338.0,68337.0,0.3618596]
[1718075552864,0.009,68338.0,68337.0,0.3618596]
[1718075553108,1.25588209,68340.0,68339.0,0.550529]
[1718075553314,1.25588209,68340.0,68339.0,0.76532509]
[1718075553514,1.25588209,68340.0,68339.0,0.76580244]
[1718075554387,1.25588209,68340.0,68339.0,0.82605279]
[1718075554596,1.25588209,68340.0,68339.0,0.82905279]
[1718075555663,1.25588209,68340.0,68339.0,0.83047624]
[1718075556327,1.25588209,68340.0,68339.0,0.83247624]
[1718075557428,1.25588209,68340.0,68339.0,0.71599484]
[1718075557645,1.25588209,68340.0,68339.0,0.83250054]
[1718075558493,1.25588209,68348.0,68347.0,0.146312]
[1718075558702,1.25588209,68348.0,68347.0,0.36306046]
[1718075558915,1.25588209,68348.0,68347.0,0.67566046]
[1718075559138,1.40020202,68348.0,68347.0,0.36306046]
[1718075559552,1.40020202,68348.0,68347.0,0.36284497]
[1718075559918,1.41220202,68348.0,68347.0,0.36484497]
[1718075563195,2.11552591,68348.0,68347.0,0.24852749]
[1718075563819,2.11552591,68348.0,68347.0,0.248312]
[1718075564319,0.85964382,68348.0,68347.0,0.248312]
[1718075564757,0.15631993,68348.0,68347.0,0.248312]
[1718075565393,0.16114382,68348.0,68347.0,0.248312]
[1718075566231,0.20452758,68348.0,68347.0,0.248312]
[1718075566435,0.93672758,68348.0,68347.0,0.102]
[1718075566646,0.95972758,68348.0,68347.0,0.102]
[1718075567010,1.0034841,68348.0,68347.0,0.102]
[1718075567429,1.00349955,68348.0,68347.0,0.102]
[1718075567847,1.00349955,68348.0,68347.0,0.002]
[1718075572358,0.95972758,68348.0,68347.0,0.002]
[1718075572989,1.02538553,68348.0,68347.0,0.002]
[1718075573226,1.02539701,68348.0,68347.0,0.002]
[1718075574091,0.95972758,68348.0,68347.0,0.002]
[1718075574326,1.38385461,68348.0,68347.0,0.002]
[1718075574987,1.53016461,68348.0,68347.0,0.002]
[1718075575210,1.68683845,68348.0,68347.0,0.001]
[1718075575435,0.54820765,68338.0,68337.0,0.000946]
[1718075575662,0.71552758,68338.0,68337.0,0.000946]
[1718075575875,0.75931209,68338.0,68337.0,0.000946]
[1718075576301,0.71552758,68338.0,68337.0,0.000946]
[1718075577548,0.75930274,68338.0,68337.0,0.000946]
[1718075578135,0.76730274,68338.0,68337.0,0.001946]
[1718075578925,0.76730274,68338.0,68337.0,0.002946]
[1718075579152,0.77530274,68338.0,68337.0,0.002946]
[1718075580672,0.77529222,68338.0,68337.0,0.002946]
[1718075582140,0.77529086,68338.0,68337.0,0.002946]
[1718075582575,0.7089071,68338.0,68337.0,0.002946]
[1718075582782,0.66514382,68338.0,68337.0,0.002946]
[1718075583451,0.66031993,68338.0,68337.0,0.315546]
[1718075583670,0.66031993,68338.0,68337.0,0.415546]
[1718075584295,0.66031993,68338.0,68337.0,0.561879]
[1718075584512,0.66514382,68338.0,68337.0,0.561879]
[1718075584961,0.66031993,68338.0,68337.0,0.561879]
[1718075589751,0.16031993,68338.0,68337.0,0.561879]
[1718075590513,0.16031993,68338.0,68337.0,0.560879]
[1718075590514,0.15231993,68338.0,68337.0,0.560879]
[1718075590713,0.15231993,68338.0,68337.0,0.562879]
[1718075590979,0.15231993,68338.0,68337.0,0.653879]
[1718075591175,0.14431993,68338.0,68337.0,0.650879]
[1718075591907,0.14431993,68338.0,68337.0,0.652879]
[1718075592038,0.14431993,68338.0,68337.0,0.653879]
[1718075592690,0.14431993,68338.0,68337.0,0.652879]
[1718075593110,0.14431993,68338.0,68337.0,0.653879]
[1718075593521,0.14431993,68338.0,68337.0,0.651879]
[1718075593926,0.14431993,68338.0,68337.0,0.652879]
[1718075594298,0.14431993,68338.0,68337.0,0.651879]
[1718075594730,0.14431993,68338.0,68337.0,0.652879]
[1718075596436,1.25588209,68343.0,68337.0,0.21896948]
[1718075596648,1.40020202,68343.0,68338.0,0.21601633]
[1718075596858,1.40020202,68343.0,68339.0,0.11601633]
[1718075597083,1.40020202,68343.0,68340.0,0.1]
[1718075597426,1.40020202,68343.0,68341.0,0.11601633]
[1718075597631,1.40020202,68343.0,68342.0,0.191]
[1718075598285,1.40220202,68343.0,68342.0,0.337322]
[1718075598757,1.40620202,68343.0,68342.0,0.337322]
[1718075599140,1.40420202,68343.0,68342.0,0.337322]
[1718075599363,1.40020202,68343.0,68342.0,0.337322]
[1718075600551,1.40520202,68343.0,68342.0,0.337322]
[1718075601169,1.40520202,68343.0,68342.0,0.339322]
[1718075601475,1.41020202,68343.0,68342.0,0.339322]
[1718075602284,0.15431993,68343.0,68342.0,0.339322]
[1718075602486,0.14931993,68343.0,68342.0,0.339322]
[1718075602958,0.14931993,68343.0,68342.0,0.318222]
[1718075603899,0.14431993,68343.0,68342.0,0.316222]
[1718075604202,0.14431993,68343.0,68342.0,0.317222]
[1718075604435,0.14431993,68343.0,68342.0,0.319222]
[1718075604675,0.14431993,68343.0,68342.0,0.318222]
[1718075605171,0.14431993,68343.0,68342.0,0.319222]
[1718075605419,0.14431993,68343.0,68342.0,0.318222]
[1718075605659,0.14431993,68343.0,68342.0,0.316222]
[1718075606563,0.14914382,68343.0,68342.0,0.316222]
[1718075606773,0.14431993,68343.0,68342.0,0.316222]
[1718075609889,0.14431993,68343.0,68342.0,0.246322]
[1718075610145,0.14914382,68343.0,68342.0,0.246322]
[1718075610992,0.14431993,68343.0,68342.0,0.246322]
[1718075612137,0.14831993,68343.0,68342.0,0.246322]
[1718075612388,0.15231993,68343.0,68342.0,0.246322]
[1718075613044,0.15231993,68343.0,68342.0,0.28834606]
[1718075617697,0.15231993,68343.0,68342.0,0.28827701]
[1718075620134,0.15231993,68343.0,68342.0,0.2882368]
[1718075621894,0.15231993,68343.0,68342.0,0.28828916]
[1718075624505,0.15231993,68343.0,68342.0,0.35818916]
[1718075626380,0.15231993,68343.0,68342.0,0.52998151]
[1718075628695,0.15231993,68343.0,68342.0,0.53092751]
[1718075629757,0.15231993,68343.0,68342.0,0.28923516]
[1718075629980,0.15231993,68343.0,68342.0,0.35913516]
[1718075630384,0.15231993,68343.0,68342.0,0.28923516]
[1718075630942,0.20052758,68343.0,68342.0,0.28923516]
[1718075631137,0.15714382,68343.0,68342.0,0.28923516]
[1718075631389,0.53644895,68343.0,68342.0,0.247268]
[1718075631590,1.79233104,68343.0,68342.0,0.247268]
[1718075632206,1.83616941,68343.0,68342.0,0.247268]
[1718075632434,2.52786941,68343.0,68342.0,0.247268]
[1718075633737,2.5278759,68343.0,68342.0,0.247268]
[1718075634163,2.48403161,68343.0,68342.0,0.247268]
[1718075634362,2.27839793,68343.0,68342.0,0.247268]
[1718075636696,2.25644819,68343.0,68342.0,0.28974783]
[1718075637451,2.27839793,68343.0,68342.0,0.28974783]
[1718075637649,2.27839793,68343.0,68342.0,0.247268]
[1718075637904,2.25644819,68343.0,68342.0,0.28967584]
[1718075638871,2.27839793,68343.0,68342.0,0.247268]
[1718075639505,2.27357404,68343.0,68342.0,0.247268]
[1718075639926,2.2516243,68343.0,68342.0,0.247268]
[1718075640352,2.25644819,68343.0,68342.0,0.247268]
[1718075640793,2.2516243,68343.0,68342.0,0.247268]
[1718075641428,2.25644819,68343.0,68342.0,0.247268]
[1718075643088,2.2516243,68343.0,68342.0,0.247268]
[1718075643291,2.25644819,68343.0,68342.0,0.247268]
[1718075644029,2.25643878,68343.0,68342.0,0.247268]
[1718075644432,2.25644066,68343.0,68342.0,0.247268]
[1718075645862,2.36972442,68343.0,68342.0,0.247268]
[1718075646068,2.39272442,68343.0,68342.0,0.000946]
[1718075646367,2.45851653,68343.0,68342.0,0.000946]
[1718075646641,2.61619293,68343.0,68342.0,0.000946]
[1718075646861,2.87055504,68343.0,68342.0,0.000946]
[1718075647086,3.17703859,68343.0,68342.0,0.000946]
[1718075647276,3.17303859,68343.0,68342.0,0.000946]
[1718075647480,3.17703859,68343.0,68342.0,0.001946]
[1718075648220,3.18503859,68343.0,68342.0,0.002946]
[1718075648425,3.18503851,68343.0,68342.0,0.002946]
[1718075648629,2.88155504,68343.0,68342.0,0.002946]
[1718075649514,2.87455504,68343.0,68342.0,0.001946]
[1718075649718,2.87455504,68343.0,68342.0,0.002946]
[1718075649926,3.18603825,68343.0,68342.0,0.002946]
[1718075650149,3.2956163,68343.0,68342.0,0.002946]
[1718075650383,3.18603825,68343.0,68342.0,0.002946]
[1718075651291,3.2956013,68343.0,68342.0,0.002946]
[1718075651495,3.4956013,68343.0,68342.0,0.002946]
[1718075652077,3.49560298,68343.0,68342.0,0.002946]
[1718075652887,3.48603993,68343.0,68342.0,0.002946]
[1718075653919,3.47003993,68343.0,68342.0,0.000946]
[1718075654354,3.47003993,68343.0,68342.0,0.002946]
[1718075654355,3.49803993,68343.0,68342.0,0.002946]
[1718075655443,3.17388571,68343.0,68342.0,0.002946]
[1718075655662,3.11876858,68343.0,68342.0,0.002946]
[1718075655877,3.4981448,68343.0,68342.0,0.002946]
[1718075657566,3.60760391,68343.0,68342.0,0.002946]
[1718075657993,3.49814403,68343.0,68342.0,0.002946]
[1718075658587,3.49814843,68343.0,68342.0,0.002946]
[1718075659288,3.49814497,68343.0,68342.0,0.002946]
[1718075660328,3.19464844,68343.0,68342.0,0.002946]
[1718075660546,3.49814705,68343.0,68342.0,0.002946]
[1718075660751,3.19464844,68343.0,68342.0,0.002946]
[1718075661182,3.49814705,68343.0,68342.0,0.002946]
[1718075662252,3.56804705,68343.0,68342.0,0.002946]
[1718075662771,3.56804782,68343.0,68342.0,0.002946]
[1718075664246,3.67749644,68343.0,68342.0,0.002946]
[1718075664652,3.29812564,68343.0,68342.0,0.002946]
[1718075664847,3.67750137,68343.0,68342.0,0.002946]
[1718075667848,4.03766562,68343.0,68342.0,0.002946]
[1718075668184,4.18398562,68343.0,68342.0,0.002946]
[1718075668385,0.89453865,68338.0,68337.0,0.000946]
[1718075668593,0.58180765,68332.0,68331.0,0.000946]
[1718075668838,3.5600903,68332.0,68331.0,0.000946]
[1718075668954,3.5830903,68332.0,68331.0,0.000946]
[1718075669172,3.51160147,68332.0,68331.0,0.000946]
[1718075669435,3.59912048,68332.0,68331.0,0.000946]
[1718075670231,3.54322048,68332.0,68331.0,0.000946]
[1718075670457,3.52560147,68332.0,68331.0,0.000946]
[1718075670677,3.20138401,68332.0,68331.0,0.000946]
[1718075671083,3.21538401,68332.0,68331.0,0.000946]
[1718075671570,3.20138401,68332.0,68331.0,0.000946]
[1718075671792,2.70452473,68332.0,68331.0,0.000946]
[1718075671988,2.40102612,68332.0,68331.0,0.000946]
[1718075672202,2.1077762,68332.0,68331.0,0.000946]
[1718075672432,2.0847762,68332.0,68331.0,0.000946]
[1718075672844,1.91420202,68332.0,68331.0,0.000946]
[1718075673053,1.90020202,68332.0,68331.0,0.000946]
[1718075673271,1.92802591,68332.0,68331.0,0.000946]
[1718075673703,1.91120202,68332.0,68331.0,0.000946]
[1718075673912,1.91602591,68332.0,68331.0,0.000946]
[1718075674127,1.92802591,68332.0,68331.0,0.000946]
[1718075674577,2.1231631,68332.0,68331.0,0.000946]
[1718075674773,2.8898631,68332.0,68331.0,0.000946]
[1718075675254,3.23714687,68332.0,68331.0,0.000946]
[1718075675585,3.19340072,68332.0,68331.0,0.000946]
[1718075675808,3.28240072,68332.0,68331.0,0.000946]
[1718075676021,3.34301995,68332.0,68331.0,0.000946]
[1718075676236,3.35501995,68332.0,68331.0,0.000946]
[1718075676697,3.34301995,68332.0,68331.0,0.000946]
[1718075677053,3.36901995,68332.0,68331.0,0.000946]
[1718075677466,3.34501995,68332.0,68331.0,0.000946]
[1718075677946,3.61761641,68332.0,68331.0,0.000946]
[1718075678218,3.7765655,68332.0,68331.0,0.000946]
[1718075678421,3.77657824,68332.0,68331.0,0.000946]
[1718075678762,3.7906234,68332.0,68331.0,0.000946]
[1718075679165,3.63165888,68332.0,68331.0,0.000946]
[1718075680212,3.32810852,68332.0,68331.0,0.000946]
[1718075680535,3.63165863,68332.0,68331.0,0.000946]
[1718075681195,3.23753397,68332.0,68331.0,0.000946]
[1718075683949,3.5617563,68332.0,68331.0,0.000946]
[1718075684385,3.64925886,68332.0,68331.0,0.000946]
[1718075685542,3.66708795,68332.0,68331.0,0.000946]
[1718075686380,3.66708787,68332.0,68331.0,0.000946]
[1718075686820,3.71841911,68332.0,68331.0,0.000946]
[1718075687023,3.74641911,68332.0,68331.0,0.000946]
[1718075687469,3.78338491,68332.0,68331.0,0.000946]
[1718075687689,4.02770484,68332.0,68331.0,0.000946]
[1718075687899,4.04966291,68332.0,68331.0,0.000946]
[1718075688297,4.23044558,68332.0,68331.0,0.000946]
[1718075688510,3.87593065,68332.0,68331.0,0.000946]
[1718075688725,4.21645783,68332.0,68331.0,0.000946]
[1718075688948,4.21645783,68332.0,68315.0,0.000946]
[1718075688949,1.19810765,68316.0,68315.0,0.000946]
[1718075689162,2.61630967,68316.0,68315.0,0.000946]
[1718075689400,2.7680994,68316.0,68315.0,0.000946]
[1718075690044,2.1181994,68316.0,68315.0,0.000946]
[1718075690294,2.1231994,68316.0,68315.0,0.000946]
[1718075690889,2.1291994,68316.0,68315.0,0.000946]
[1718075691471,2.08581564,68316.0,68315.0,0.000946]
[1718075692252,2.09381539,68316.0,68315.0,0.000946]
[1718075693971,2.23719915,68316.0,68315.0,0.000946]
[1718075694178,3.04585911,68316.0,68315.0,0.000946]
[1718075694392,3.5512061,68316.0,68315.0,0.000946]
[1718075694608,3.85483491,68316.0,68315.0,0.000946]
[1718075694811,3.74537308,68316.0,68315.0,0.000946]
[1718075695450,3.78263736,68316.0,68315.0,0.000946]
[1718075695673,3.77163736,68316.0,68315.0,0.000946]
[1718075695885,3.91001536,68316.0,68315.0,0.000946]
[1718075696289,3.74200677,68316.0,68315.0,0.000946]
[1718075696534,3.75303264,68316.0,68315.0,0.000946]
[1718075696767,2.80129255,68316.0,68315.0,0.211546]
[1718075696976,2.08584126,68316.0,68315.0,0.211546]
[1718075697201,2.11384126,68316.0,68315.0,0.211546]
[1718075697613,1.96202591,68316.0,68315.0,0.211546]
[1718075698141,1.95720202,68316.0,68315.0,0.211546]
[1718075698392,1.96202591,68316.0,68315.0,0.211546]
[1718075699128,1.94802591,68316.0,68315.0,0.211546]
[1718075699494,1.93702591,68316.0,68315.0,0.000946]
[1718075699741,1.93220202,68316.0,68315.0,0.202146]
[1718075699920,1.93220202,68316.0,68315.0,0.210646]
[1718075700327,1.94620202,68316.0,68315.0,0.210646]
[1718075701141,1.92320202,68316.0,68315.0,0.55233835]
[1718075701978,1.92320202,68316.0,68315.0,0.69871835]
[1718075701979,1.40920202,68316.0,68315.0,0.69871835]
[1718075702186,1.39520202,68316.0,68315.0,0.69871835]
[1718075702401,1.40320202,68316.0,68315.0,0.69871835]
[1718075702628,1.40520202,68316.0,68315.0,0.457026]
[1718075702840,1.41320202,68316.0,68315.0,0.457026]
[1718075703056,1.40320202,68316.0,68315.0,0.457026]
[1718075703270,1.39520202,68316.0,68315.0,0.457026]
[1718075703477,1.40020202,68316.0,68315.0,0.457026]
[1718075703683,1.90502591,68316.0,68315.0,0.457026]
[1718075703889,1.90102591,68316.0,68315.0,0.457026]
[1718075704547,1.90102591,68316.0,68315.0,0.448526]
[1718075704834,1.90102591,68316.0,68315.0,0.000946]
[1718075704835,1.94440967,68316.0,68315.0,0.000946]
[1718075705081,2.49036963,68316.0,68315.0,0.000946]
[1718075705306,2.42020967,68316.0,68315.0,0.000946]
[1718075705536,2.41920967,68316.0,68315.0,0.000946]
[1718075706431,2.42720967,68316.0,68315.0,0.000946]
[1718075706833,2.43420967,68316.0,68315.0,0.000946]
[1718075708056,2.39082591,68316.0,68315.0,0.000946]
[1718075708317,1.94002591,68316.0,68315.0,0.000946]
[1718075708709,1.93302591,68316.0,68315.0,0.000946]
[1718075709122,1.91720202,68316.0,68315.0,0.210646]
[1718075710183,1.91720202,68316.0,68315.0,0.357026]
[1718075710410,1.41720202,68316.0,68315.0,0.37220211]
[1718075710631,1.41720202,68316.0,68315.0,0.62881835]
[1718075710844,1.41720202,68316.0,68315.0,0.47220211]
[1718075711076,1.41720202,68316.0,68315.0,0.67083748]
[1718075711488,1.40720202,68316.0,68315.0,0.6708382]
[1718075711887,1.39820202,68316.0,68315.0,0.6708382]
[1718075712093,1.39520202,68316.0,68315.0,0.6708382]
[1718075712294,1.40020202,68316.0,68315.0,0.6708382]
[1718075712496,1.40120202,68316.0,68315.0,0.67090546]
[1718075712918,1.39620202,68316.0,68315.0,0.67090546]
[1718075713331,1.39620202,68316.0,68315.0,0.51428922]
[1718075713527,1.39620202,68316.0,68315.0,0.49911311]
[1718075713734,1.40020202,68316.0,68315.0,0.457026]
[1718075714084,1.40502591,68316.0,68315.0,0.457026]
[1718075714893,1.39520202,68316.0,68315.0,0.457026]
[1718075715327,1.39720202,68316.0,68315.0,0.457026]
[1718075716368,1.39720202,68316.0,68315.0,0.47220211]
[1718075716849,1.39520202,68316.0,68315.0,0.62881835]
[1718075717064,1.39520202,68316.0,68315.0,0.6709894]
[1718075717291,1.39520202,68316.0,68315.0,0.62881835]
[1718075718222,1.40020202,68316.0,68315.0,0.62881835]
[1718075718514,1.39920202,68316.0,68315.0,0.62881835]
[1718075718710,1.39920202,68316.0,68315.0,1.26651743]
[1718075718711,0.003,68316.0,68315.0,1.26651743]
[1718075719014,0.003,68316.0,68315.0,1.73427643]
[1718075719238,0.008,68316.0,68315.0,1.90907643]
[1718075719498,0.005,68316.0,68315.0,1.90907643]
[1718075719743,0.46890416,68324.0,68323.0,0.82058235]
[1718075719972,0.46890416,68324.0,68323.0,1.03777492]
[1718075720179,0.46890416,68324.0,68323.0,1.13777492]
[1718075721722,0.46890416,68324.0,68323.0,1.44050192]
[1718075722571,1.25088209,68326.0,68325.0,0.82586935]
[1718075722774,1.25088209,68326.0,68325.0,0.96804643]
[1718075722981,1.25088209,68326.0,68325.0,1.26076443]
[1718075723192,0.00086,68332.0,68331.0,0.61083035]
[1718075723397,0.00086,68332.0,68331.0,1.09063035]
[1718075723622,0.00086,68332.0,68331.0,1.13280743]
[1718075725133,0.00086,68332.0,68331.0,0.95800743]
[1718075726161,0.00086,68332.0,68331.0,0.96200743]
[1718075726335,0.00086,68332.0,68331.0,0.95800743]
[1718075726992,0.00086,68332.0,68331.0,1.13280743]
[1718075727434,0.00086,68332.0,68331.0,0.88563035]
[1718075727651,0.00086,68332.0,68331.0,0.71083035]
[1718075727873,0.00186,68332.0,68331.0,0.71183035]
[1718075728045,0.00086,68332.0,68331.0,0.71083035]
[1718075728278,0.00086,68332.0,68331.0,0.55421411]
[1718075728448,0.00186,68332.0,68331.0,0.55521411]
[1718075728653,0.00086,68332.0,68331.0,0.71083035]
[1718075729097,0.00086,68332.0,68331.0,0.71183035]
[1718075729098,0.00186,68332.0,68331.0,0.71183035]
[1718075729302,0.14617993,68332.0,68331.0,0.247346]
[1718075730698,0.14517993,68332.0,68331.0,0.246346]
[1718075731089,0.14617993,68332.0,68331.0,0.247346]
[1718075731312,0.14617993,68332.0,68331.0,0.246346]
[1718075732345,0.14717993,68332.0,68331.0,0.247346]
[1718075732562,0.14717993,68332.0,68331.0,0.246346]
[1718075732563,0.14517993,68332.0,68331.0,0.246346]
[1718075733940,0.14617993,68332.0,68331.0,0.247346]
[1718075734356,0.14517993,68332.0,68331.0,0.246346]
[1718075734558,0.14617993,68332.0,68331.0,0.247346]
[1718075734969,0.14617993,68332.0,68331.0,0.26533929]
[1718075735624,1.51742963,68332.0,68331.0,0.001]
[1718075735847,2.19202963,68332.0,68331.0,0.001]
[1718075737122,2.11986967,68332.0,68331.0,0.001]
[1718075737555,0.5,68325.0,68324.0,0.246361]
[1718075737768,0.66731993,68325.0,68324.0,0.246361]
[1718075737974,0.67214382,68325.0,68324.0,0.246361]
[1718075739121,0.67214382,68325.0,68324.0,0.247361]
[1718075740235,1.92302591,68325.0,68324.0,0.247361]
[1718075740439,2.31852591,68325.0,68324.0,0.247361]
[1718075741468,2.54892591,68325.0,68324.0,0.247361]
[1718075743551,2.54410202,68325.0,68324.0,0.247361]
[1718075744398,1.89520202,68325.0,68324.0,0.247361]
[1718075745944,0.64431993,68325.0,68324.0,0.247361]
[1718075753762,1.24484382,68325.0,68324.0,0.247361]
[1718075756251,1.24484382,68325.0,68324.0,0.248307]
[1718075757617,2.49572591,68325.0,68324.0,0.248307]
[1718075762238,2.53910967,68325.0,68324.0,0.248307]
[1718075762474,2.49572591,68325.0,68324.0,0.248307]
[1718075762682,2.53910967,68325.0,68324.0,0.248307]
[1718075764164,2.49572591,68325.0,68324.0,0.248307]
[1718075770809,2.53910967,68325.0,68324.0,0.248307]
[1718075771920,2.56210967,68325.0,68324.0,0.001946]
[1718075772373,2.71387644,68325.0,68324.0,0.001946]
[1718075772790,2.71387644,68325.0,68324.0,0.000946]
[1718075773217,2.71787644,68325.0,68324.0,0.000946]
[1718075773622,2.71387644,68325.0,68324.0,0.000946]
[1718075774679,2.71987644,68325.0,68324.0,0.000946]
[1718075775283,2.75764921,68325.0,68324.0,0.000946]
[1718075775494,2.77364921,68325.0,68324.0,0.000946]
[1718075775882,2.76764921,68325.0,68324.0,0.000946]
[1718075776332,2.77564921,68325.0,68324.0,0.000946]
[1718075778295,2.73187644,68325.0,68324.0,0.000946]
[1718075780526,3.05609585,68325.0,68324.0,0.000946]
[1718075780728,3.05609851,68325.0,68324.0,0.000946]
[1718075781566,3.14378311,68325.0,68324.0,0.000946]
[1718075782812,2.73187644,68325.0,68324.0,0.000946]
[1718075783221,2.27736879,68325.0,68324.0,0.147307]
[1718075783446,2.13074228,68325.0,68324.0,0.147307]
[1718075783868,1.91320202,68325.0,68324.0,0.147307]
[1718075785119,1.91802591,68325.0,68324.0,0.147307]
[1718075785330,1.91320202,68325.0,68324.0,0.147307]
[1718075785539,1.91802591,68325.0,68324.0,0.147307]
[1718075785774,1.91320202,68325.0,68324.0,0.147307]
[1718075788462,1.91802591,68325.0,68324.0,0.147307]
[1718075790768,1.91320202,68325.0,68324.0,0.147307]
[1718075791392,1.91802591,68325.0,68324.0,0.147307]
[1718075791915,0.16231993,68325.0,68324.0,0.147307]
[1718075792171,0.16231993,68325.0,68324.0,0.247307]
[1718075793586,0.15231993,68325.0,68324.0,0.247307]
[1718075793998,0.15231993,68325.0,68324.0,0.248307]
[1718075794407,0.15231993,68325.0,68324.0,0.247307]
[1718075794640,0.14431993,68325.0,68324.0,0.247307]
[1718075794833,0.14531993,68325.0,68324.0,0.250307]
[1718075795342,0.14531993,68325.0,68324.0,0.26548311]
[1718075795555,0.14531993,68325.0,68324.0,0.250307]
[1718075795760,0.14531993,68325.0,68324.0,0.26548311]
[1718075797531,0.14531993,68325.0,68324.0,0.250307]
[1718075802716,0.14531993,68325.0,68324.0,0.42209935]
[1718075802919,0.14531993,68325.0,68324.0,0.26548311]
[1718075803590,0.14531993,68325.0,68324.0,0.260307]
[1718075805458,0.14531993,68325.0,68324.0,0.250307]
[1718075805666,0.14531993,68325.0,68324.0,0.320207]
[1718075805871,0.14531993,68325.0,68324.0,0.330207]
[1718075806708,0.14531993,68325.0,68324.0,0.320207]
[1718075807867,0.14531993,68325.0,68324.0,0.250307]
[1718075808063,0.67744382,68325.0,68324.0,0.250307]
[1718075808277,0.72082758,68325.0,68324.0,0.250307]
[1718075808531,0.74382758,68325.0,68324.0,0.250307]
[1718075808734,0.74382758,68325.0,68324.0,0.150307]
[1718075808735,1.99470967,68325.0,68324.0,0.150307]
[1718075808906,2.03855491,68325.0,68324.0,0.150307]
[1718075809106,2.03755491,68325.0,68324.0,0.148307]
[1718075809313,1.99370967,68325.0,68324.0,0.148307]
[1718075809509,1.99370967,68325.0,68324.0,0.149307]
[1718075809710,1.99370967,68325.0,68324.0,0.147307]
[1718075810091,1.99370967,68325.0,68324.0,0.148307]
[1718075810304,2.040531,68325.0,68324.0,0.148307]
[1718075810529,2.040531,68325.0,68324.0,0.147307]
[1718075811205,2.00170967,68325.0,68324.0,0.147307]
[1718075815933,2.04552331,68325.0,68324.0,0.147307]
[1718075816568,2.00170967,68325.0,68324.0,0.147307]
[1718075817325,2.04552106,68325.0,68324.0,0.147307]
[1718075822011,2.04552106,68325.0,68324.0,0.000946]
[1718075822660,2.04353895,68325.0,68324.0,0.000946]
[1718075822861,2.04353689,68325.0,68324.0,0.000946]
[1718075825386,2.04353631,68325.0,68324.0,0.000946]
[1718075826808,2.04353581,68325.0,68324.0,0.000946]
[1718075829042,1.99972756,68325.0,68324.0,0.000946]
[1718075829854,2.06543994,68325.0,68324.0,0.000946]
[1718075830093,1.99972756,68325.0,68324.0,0.000946]
[1718075830338,2.06543994,68325.0,68324.0,0.000946]
[1718075831297,1.99043994,68325.0,68324.0,0.000946]
[1718075833169,1.92472756,68325.0,68324.0,0.000946]
[1718075834811,1.8813438,68325.0,68324.0,0.000946]
[1718075835375,1.92472756,68325.0,68324.0,0.000946]
[1718075835699,1.8813438,68325.0,68324.0,0.000946]
[1718075835909,1.92472756,68325.0,68324.0,0.000946]
[1718075839820,2.06085857,68325.0,68324.0,0.000946]
[1718075840366,2.36441563,68325.0,68324.0,0.000946]
[1718075841274,2.43011754,68325.0,68324.0,0.000946]
[1718075841565,3.22963634,68325.0,68324.0,0.000946]
[1718075841979,3.36104016,68325.0,68324.0,0.000946]
[1718075842412,1.22240765,68316.0,68315.0,0.000946]
[1718075842644,3.50453331,68316.0,68315.0,0.000946]
[1718075843084,3.59214249,68316.0,68315.0,0.000946]
[1718075843650,3.50453331,68316.0,68315.0,0.000946]
[1718075844072,3.51153331,68316.0,68315.0,0.000946]
[1718075844281,3.31125642,68316.0,68315.0,0.000946]
[1718075844488,2.89941167,68316.0,68315.0,0.000946]
[1718075844911,2.9651043,68316.0,68315.0,0.000946]